bitfinex/quotes_SOLUSD_20240809
["timestamp","ask_amount","ask_price","bid_price","bid_amount"]
[1723170919104,32.5776,159.55,159.47,26.31]
[1723170919394,26.31,159.55,159.51,6.2691]
[1723170919600,26.31,159.55,159.5,6.2695]
[1723170920501,26.31,159.55,159.49,15.674]
[1723170921983,32.5768,159.57,159.49,41.984]
[1723170922389,32.81926816,159.59,159.51,26.31]
[1723170922587,6.50926816,159.59,159.53,26.31]
[1723170922803,26.31,159.61,159.53,26.31]
[1723170922804,32.5754,159.61,159.53,26.31]
[1723170923806,26.31,159.61,159.53,26.31]
[1723170923985,26.31,159.63,159.55,26.31]
[1723170924198,26.31,159.61,159.55,26.31]
[1723170924412,26.31,159.59,159.53,26.31]
[1723170924717,7.83332205,159.58,159.51,26.31]
[1723170924890,1.56682205,159.58,159.51,26.31]
[1723170925080,32.576,159.59,159.51,26.31]
[1723170925409,1.56675704,159.58,159.51,26.31]
[1723170925591,26.31,159.56,159.49,26.31]
[1723170926889,6.2664,159.58,159.49,26.31]
[1723170926890,32.5764,159.58,159.49,26.31]
[1723170927901,26.31,159.58,159.49,26.31]
[1723170928907,7.83372681,159.57,159.49,26.31]
[1723170929112,26.31,159.56,159.49,26.31]
[1723170930183,27.87703652,159.56,159.48,21.7104]
[1723170931385,1.56703703,159.55,159.48,21.7104]
[1723170931886,1.56703703,159.55,159.48,15.3175]
[1723170932080,1.56724869,159.55,159.48,15.3175]
[1723170932284,26.31,159.56,159.49,26.31]
[1723170935386,26.31,159.56,159.47,26.31]
[1723170935387,1.56717829,159.55,159.47,26.31]
[1723170935693,26.31,159.52,159.45,26.31]
[1723170935898,7.8366452,159.51,159.44,15.8492]
[1723170936201,1.5674452,159.51,159.44,15.8492]
[1723170936787,26.31,159.52,159.44,15.8492]
[1723170937607,26.31,159.52,159.45,26.31]
[1723170938003,26.31,159.54,159.45,26.31]
[1723170938395,26.31,159.54,159.47,26.31]
[1723170940707,6.3066,159.57,159.51,26.31]
[1723170941110,32.6166,159.57,159.49,26.31]
[1723170941294,7.83433653,159.56,159.49,26.31]
[1723170941701,26.31,159.55,159.47,26.31]
[1723170943011,1.56716993,159.56,159.49,26.31]
[1723170944514,7.83436993,159.56,159.49,26.31]
[1723170946108,32.5776,159.55,159.47,26.31]
[1723170946311,6.3066,159.57,159.45,26.31]
[1723170946312,26.31,159.53,159.45,26.31]
[1723170946515,32.5784,159.53,159.45,26.31]
[1723170947005,1.56736568,159.52,159.45,26.31]
[1723170947601,26.31,159.53,159.45,26.31]
[1723170948400,32.5784,159.53,159.45,26.31]
[1723170948710,26.31,159.53,159.45,26.31]
[1723170950407,26.31,159.55,159.47,26.31]
[1723170951008,27.87717433,159.55,159.47,26.31]
[1723170951193,27.87717449,159.55,159.47,26.31]
[1723170951812,26.31,159.55,159.47,26.31]
[1723170952210,27.87717192,159.55,159.47,26.31]
[1723170952711,26.31,159.55,159.47,26.31]
[1723170954324,2.51883731,159.56,159.49,26.31]
[1723170954502,12.5734,159.57,159.49,26.31]
[1723170955599,26.31,159.56,159.49,26.31]
[1723170955791,6.2676,159.55,159.47,26.31]
[1723170956020,27.87702748,159.56,159.47,26.31]
[1723170956807,6.2677,159.55,159.47,26.31]
[1723170959006,7.83486418,159.55,159.47,26.31]
[1723170959622,32.5773,159.56,159.47,26.31]
[1723170960224,34.14434082,159.56,159.47,26.31]
[1723170960727,32.5773,159.56,159.47,26.31]
[1723170962119,34.14437152,159.56,159.47,26.31]
[1723170963819,32.5773,159.56,159.47,26.31]
[1723170964352,6.2676,159.55,159.47,26.31]
[1723170965704,27.87715661,159.54,159.45,46.31]
[1723170965913,26.31,159.54,159.45,46.31]
[1723170966227,26.31,159.54,159.45,26.31]
[1723170966428,27.87712204,159.54,159.45,26.31]
[1723170966728,26.31,159.54,159.45,46.31]
[1723170967509,32.5772,159.56,159.45,46.31]
[1723170967931,1.56712058,159.55,159.45,46.31]
[1723170969130,27.87712073,159.56,159.45,46.31]
[1723170970029,27.87712073,159.56,159.47,26.31]
[1723170970203,26.31,159.56,159.47,46.31]
[1723170970617,35.35421369,159.58,159.48,6.2248]
[1723170970813,9.04421369,159.58,159.49,46.31]
[1723170971010,9.04421369,159.58,159.44,15.8492]
[1723170971011,26.31,159.5,159.44,15.8492]
[1723170971808,6.3504,159.57,159.46,18.14]
[1723170972033,18.14,159.52,159.46,18.14]
[1723170972239,6.3504,159.57,159.47,18.14]
[1723170972240,6.268,159.54,159.47,18.14]
[1723170972443,18.14,159.52,159.47,18.14]
[1723170972608,18.14,159.51,159.45,18.14]
[1723170973533,18.14,159.52,159.46,18.14]
[1723170973721,32.7186,159.53,159.44,42.2992]
[1723170975240,26.45,159.51,159.44,15.8492]
[1723170975613,6.2688,159.52,159.44,15.8492]
[1723170975814,32.7188,159.52,159.44,15.8492]
[1723170976230,26.45,159.52,159.44,15.8492]
[1723170976523,28.0174674,159.52,159.44,15.8492]
[1723170978851,6.3504,159.57,159.45,26.45]
[1723170979049,26.45,159.52,159.45,26.45]
[1723170979362,26.45,159.52,159.44,15.8492]
[1723170980411,6.2676,159.55,159.44,62.2992]
[1723170980615,26.45,159.54,159.44,62.2992]
[1723170980921,6.3504,159.57,159.44,62.2992]
[1723170980922,26.45,159.52,159.44,62.2992]
[1723170981727,26.45,159.53,159.44,62.2992]
[1723170983243,32.7184,159.53,159.44,62.2992]
[1723170984956,6.2688,159.52,159.44,42.2992]
[1723170985731,32.7184,159.53,159.44,42.2992]
[1723170986127,32.7184,159.53,159.44,62.2992]
[1723170986945,6.2684,159.53,159.44,62.2992]
[1723170988722,6.2671,159.57,159.48,26.45]
[1723170988926,6.2674,159.56,159.48,26.45]
[1723170989751,18.88140806,159.58,159.5,26.45]
[1723170989752,32.96823767,159.58,159.5,26.45]
[1723170989917,26.45,159.58,159.5,26.45]
[1723170990121,26.45,159.58,159.51,26.45]
[1723170990759,26.45,159.57,159.5,26.45]
[1723170991128,26.45,159.58,159.5,26.45]
[1723170991941,6.2661,159.59,159.5,26.45]
[1723170992150,26.45,159.58,159.5,26.45]
[1723170992324,26.45,159.55,159.48,27.70341561]
[1723170992524,26.45,159.5,159.44,6.5349601]
[1723170992743,26.45,159.52,159.4,16.6222]
[1723170992744,26.45,159.47,159.4,16.6222]
[1723170992928,26.45,159.45,159.4,16.6222]
[1723170993561,1.56797065,159.51,159.44,26.45]
[1723170993562,1.56791201,159.51,159.44,26.45]
[1723170993850,6.2681,159.54,159.48,26.45]
[1723170994026,32.7181,159.54,159.46,26.45]
[1723170994377,6.2694,159.51,159.45,16.3169]
[1723170994735,32.7188,159.52,159.45,16.3169]
[1723170995552,6.2679,159.55,159.46,26.45]
[1723170995733,18.13,159.54,159.49,18.13]
[1723170997755,7.83389604,159.57,159.45,16.3169]
[1723170997756,24.3989,159.52,159.45,16.3169]
[1723170998063,24.3989,159.52,159.46,18.13]
[1723170998064,18.13,159.52,159.46,18.13]
[1723170998746,18.13,159.52,159.47,18.13]
[1723170998945,18.13,159.52,159.46,18.13]
[1723171000142,18.13,159.51,159.46,18.13]
[1723171000337,18.13,159.52,159.46,18.13]
[1723171000856,18.13,159.52,159.47,18.13]
[1723171002051,18.13,159.51,159.46,18.13]
[1723171002256,18.13,159.52,159.46,18.13]
[1723171002937,18.13,159.52,159.47,18.13]
[1723171003141,21.9672,159.58,159.5,18.13]
[1723171003327,21.9672,159.58,159.51,18.13]
[1723171003328,18.13,159.56,159.51,18.13]
[1723171003530,18.13,159.57,159.52,18.13]
[1723171003745,18.13,159.56,159.51,18.13]
[1723171004060,72.52,159.6,159.48,6.4244]
[1723171004061,18.13,159.57,159.52,18.13]
[1723171004432,18.13,159.54,159.48,6.4244]
[1723171004627,18.13,159.54,159.49,18.13]
[1723171005739,1.56673792,159.6,159.49,18.13]
[1723171005958,6.5351963,159.61,159.55,18.13]
[1723171006178,18.13,159.57,159.48,26.4244]
[1723171006463,18.13,159.56,159.51,18.13]
[1723171006663,18.13,159.57,159.52,18.13]
[1723171006835,18.13,159.58,159.53,18.13]
[1723171007263,6.2656,159.61,159.53,18.13]
[1723171007560,18.13,159.58,159.53,18.13]
[1723171007739,18.13,159.58,159.52,18.13]
[1723171008129,22.6552,159.62,159.52,18.13]
[1723171008335,18.13,159.58,159.53,18.13]
[1723171008844,18.13,159.58,159.54,18.13]
[1723171009028,18.13,159.57,159.52,18.13]
[1723171009453,18.13,159.56,159.48,6.4244]
[1723171009757,18.13,159.56,159.51,18.13]
[1723171010659,74.08669233,159.6,159.51,18.13]
[1723171010833,18.13,159.56,159.52,18.13]
[1723171011249,18.13,159.55,159.48,6.4244]
[1723171011435,18.13,159.55,159.5,18.13]
[1723171011939,18.13,159.56,159.51,18.13]
[1723171012566,7.8324848,159.6,159.51,18.13]
[1723171012855,18.13,159.57,159.52,18.13]
[1723171013246,6.2656,159.6,159.52,18.13]
[1723171013446,18.13,159.57,159.52,18.13]
[1723171013943,18.13,159.56,159.52,18.13]
[1723171015338,6.2657,159.6,159.53,18.13]
[1723171015666,18.13,159.57,159.52,18.13]
[1723171016462,28.9204,159.62,159.54,18.13]
[1723171016666,18.13,159.58,159.54,18.13]
[1723171017462,18.13,159.59,159.54,18.13]
[1723171017669,21.919,159.66,159.57,18.13]
[1723171017869,18.13,159.61,159.57,18.13]
[1723171018163,18.13,159.61,159.56,18.13]
[1723171018942,21.919,159.66,159.58,18.13]
[1723171019149,18.13,159.64,159.59,18.13]
[1723171019462,18.13,159.63,159.58,18.13]
[1723171019665,6.2642,159.64,159.56,18.13]
[1723171019962,18.13,159.62,159.58,18.13]
[1723171020164,18.13,159.62,159.57,18.13]
[1723171020538,7.82996275,159.65,159.57,18.13]
[1723171020737,7.82990612,159.65,159.57,18.13]
[1723171020961,18.13,159.61,159.56,18.13]
[1723171021471,1.56621004,159.64,159.55,18.13]
[1723171021472,18.13,159.6,159.55,18.13]
[1723171022040,18.13,159.59,159.54,18.13]
[1723171022239,18.13,159.59,159.51,15.5862]
[1723171022461,18.13,159.59,159.55,18.13]
[1723171022762,18.13,159.61,159.56,18.13]
[1723171023068,18.13,159.6,159.55,18.13]
[1723171023553,6.2641,159.64,159.52,92.52]
[1723171023867,18.13,159.61,159.52,20.0]
[1723171024053,18.13,159.61,159.55,18.13]
[1723171024563,18.13,159.58,159.51,15.5862]
[1723171024762,1.56651558,159.65,159.52,18.13]
[1723171024763,18.13,159.57,159.52,18.13]
[1723171025861,18.13,159.56,159.51,33.7162]
[1723171026366,18.13,159.55,159.51,15.5862]
[1723171026556,72.52,159.6,159.47,6.54263286]
[1723171026557,18.13,159.52,159.47,6.54263286]
[1723171026747,18.13,159.5,159.46,16.1041]
[1723171026942,18.13,159.48,159.44,6.2554]
[1723171027165,18.13,159.48,159.42,34.34238942]
[1723171027648,18.13,159.48,159.43,18.13]
[1723171027966,18.13,159.5,159.45,18.13]
[1723171028479,18.13,159.5,159.44,18.13]
[1723171028656,18.13,159.49,159.43,18.13]
[1723171029389,18.13,159.49,159.42,16.1041]
[1723171029390,18.13,159.46,159.42,16.1041]
[1723171029539,1.56757802,159.48,159.4,24.5549]
[1723171029540,18.13,159.45,159.4,24.5549]
[1723171030139,1.56757802,159.48,159.41,18.13]
[1723171030353,18.13,159.44,159.39,18.13]
[1723171030567,18.13,159.4,159.37,6.54678495]
[1723171030978,18.13,159.39,159.37,6.54678495]
[1723171031572,18.13,159.38,159.37,6.54678495]
[1723171031761,1.56854378,159.42,159.37,6.54678495]
[1723171031762,26.49,159.4,159.37,6.54678495]
[1723171032154,26.49,159.38,159.37,6.54678495]
[1723171032360,26.49,159.38,159.28,48.00508461]
[1723171032561,26.49,159.36,159.28,48.00508461]
[1723171033098,26.49,159.38,159.3,26.49]
[1723171036674,32.7635,159.4,159.32,26.49]
[1723171036890,1.56880648,159.39,159.32,26.49]
[1723171037186,15.3239,159.42,159.28,29.19902188]
[1723171037361,15.3239,159.42,159.28,6.5372767]
[1723171037362,26.49,159.36,159.28,6.5372767]
[1723171037556,1.56912021,159.35,159.27,27.3194675]
[1723171038483,26.49,159.34,159.27,0.8294675]
[1723171041470,38.9616,159.36,159.29,26.49]
[1723171041985,38.9616,159.36,159.27,27.3194675]
[1723171042567,26.49,159.34,159.27,27.3194675]
[1723171046288,32.7659,159.34,159.27,27.3194675]
[1723171047191,26.49,159.34,159.27,27.3194675]
[1723171051808,18.17,159.35,159.3,18.17]
[1723171052012,18.17,159.34,159.29,18.17]
[1723171054308,18.17,159.32,159.28,18.17]
[1723171054512,18.17,159.33,159.28,18.17]
[1723171054803,22.0677,159.36,159.27,18.9994675]
[1723171055013,18.17,159.32,159.27,18.9994675]
[1723171055692,22.0677,159.36,159.28,18.17]
[1723171055890,18.17,159.32,159.28,18.17]
[1723171056089,6.2763,159.33,159.28,18.17]
[1723171056298,24.4463,159.33,159.28,18.17]
[1723171057091,18.17,159.33,159.28,18.17]
[1723171058905,6.2755,159.35,159.3,18.17]
[1723171059206,18.17,159.35,159.3,18.17]
[1723171059796,18.17,159.35,159.29,18.17]
[1723171059797,18.17,159.34,159.29,18.17]
[1723171060396,6.2755,159.35,159.29,18.17]
[1723171060596,24.4455,159.35,159.3,18.17]
[1723171066421,6.2755,159.35,159.31,18.17]
[1723171066630,40.63180998,159.4,159.34,18.17]
[1723171066631,6.2743,159.38,159.34,18.17]
[1723171066800,24.4439,159.39,159.34,18.17]
[1723171067119,6.2743,159.38,159.34,18.17]
[1723171067727,19.7387011,159.37,159.32,18.17]
[1723171068103,6.2747,159.37,159.33,18.17]
[1723171068906,6.2747,159.37,159.34,18.17]
[1723171069122,6.2747,159.37,159.33,18.17]
[1723171069712,24.4443,159.38,159.33,18.17]
[1723171070107,24.4443,159.38,159.29,20.0]
[1723171070108,6.2739,159.39,159.35,18.17]
[1723171070410,24.4445,159.38,159.34,18.17]
[1723171070816,24.4445,159.38,159.33,18.17]
[1723171071009,6.2747,159.37,159.33,18.17]
[1723171072031,24.4443,159.38,159.33,18.17]
[1723171073407,24.4443,159.38,159.34,18.17]
[1723171077532,18.17,159.37,159.33,18.17]
[1723171079533,18.17,159.37,159.32,18.17]
[1723171080625,18.17,159.37,159.28,72.68]
[1723171080831,18.17,159.37,159.32,18.17]
[1723171081141,18.17,159.36,159.31,18.17]
[1723171081810,6.2747,159.37,159.32,18.17]
[1723171081811,18.17,159.37,159.32,18.17]
[1723171082531,7.84312813,159.38,159.32,18.17]
[1723171082833,18.17,159.37,159.32,18.17]
[1723171083245,6.2739,159.39,159.33,18.17]
[1723171083415,18.17,159.38,159.33,18.17]
[1723171083945,22.5138,159.4,159.36,18.17]
[1723171084116,22.5138,159.4,159.35,18.17]
[1723171084117,40.6838,159.4,159.35,18.17]
[1723171084463,40.6838,159.4,159.31,20.0]
[1723171084464,22.5138,159.4,159.34,18.17]
[1723171084614,18.17,159.39,159.34,18.17]
[1723171085828,18.17,159.38,159.34,18.17]
[1723171086341,24.4443,159.38,159.33,18.17]
[1723171086936,18.17,159.36,159.27,7.34951972]
[1723171087234,18.17,159.34,159.29,18.17]
[1723171087437,22.5138,159.4,159.31,18.17]
[1723171087744,18.17,159.35,159.31,18.17]
[1723171088035,18.17,159.35,159.27,0.8294675]
[1723171088247,18.17,159.32,159.27,0.8294675]
[1723171088447,18.17,159.32,159.27,18.9994675]
[1723171088739,18.17,159.33,159.28,18.17]
[1723171089122,18.17,159.35,159.31,18.17]
[1723171089321,18.17,159.35,159.3,18.17]
[1723171089631,18.17,159.34,159.3,18.17]
[1723171091121,24.4455,159.35,159.3,18.17]
[1723171091323,18.17,159.33,159.28,18.17]
[1723171092338,18.17,159.33,159.29,18.17]
[1723171092950,18.17,159.34,159.29,18.17]
[1723171093649,18.17,159.35,159.3,18.17]
[1723171094347,22.5138,159.4,159.33,18.17]
[1723171094538,24.444,159.39,159.34,18.17]
[1723171094728,18.17,159.38,159.33,18.17]
[1723171094931,24.4444,159.38,159.33,18.17]
[1723171095154,24.4448,159.37,159.32,18.17]
[1723171095522,24.4448,159.37,159.33,18.17]
[1723171095739,18.17,159.38,159.33,18.17]
[1723171096854,22.5138,159.4,159.36,18.17]
[1723171097030,40.6838,159.4,159.36,18.17]
[1723171097541,40.6838,159.4,159.35,18.17]
[1723171097733,18.17,159.39,159.34,18.17]
[1723171098039,18.17,159.38,159.32,18.17]
[1723171098762,6.2747,159.37,159.32,18.17]
[1723171099226,18.17,159.38,159.32,18.17]
[1723171099227,24.4443,159.38,159.32,18.17]
[1723171099855,22.5138,159.4,159.34,18.17]
[1723171099856,28.7877,159.4,159.34,18.17]
[1723171100046,40.6838,159.4,159.35,18.17]
[1723171100453,18.17,159.39,159.34,18.17]
[1723171100955,40.6838,159.4,159.35,18.17]
[1723171101145,18.17,159.37,159.27,0.8294675]
[1723171101348,26.2743,159.39,159.33,18.17]
[1723171101528,18.17,159.38,159.33,18.17]
[1723171102035,6.2743,159.39,159.33,18.17]
[1723171102230,18.17,159.38,159.33,18.17]
[1723171103134,24.4443,159.38,159.33,18.17]
[1723171103658,24.4443,159.38,159.34,45.0]
[1723171104029,24.4439,159.39,159.34,63.17]
[1723171104340,22.5138,159.4,159.36,18.17]
[1723171104341,16.2442,159.4,159.36,18.17]
[1723171104542,24.4434,159.41,159.37,45.0]
[1723171105732,18.17,159.4,159.37,45.0]
[1723171105938,24.4435,159.4,159.37,45.0]
[1723171106255,24.4435,159.4,159.36,45.0]
[1723171106970,37.861,159.44,159.37,18.17]
[1723171107253,37.861,159.44,159.38,45.0]
[1723171107254,24.4439,159.39,159.38,45.0]
[1723171113957,8.42,159.39,159.28,15.0159]
[1723171114262,20.0,159.43,159.27,0.8294675]
[1723171114263,18.17,159.29,159.27,0.8294675]
[1723171114554,19.73978772,159.28,159.27,0.8294675]
[1723171114735,1.56978772,159.28,159.27,0.8294675]
[1723171114932,19.73978772,159.28,159.27,0.8294675]
[1723171115560,18.17,159.28,159.27,0.8294675]
[1723171116058,24.4482,159.28,159.27,0.8294675]
[1723171116270,21.2611,159.19,159.05,15.8524]
[1723171116570,1.57103201,159.18,159.05,15.8524]
[1723171116736,6.2833,159.16,159.09,18.17]
[1723171116937,6.2826,159.17,159.07,20.0]
[1723171117153,27.5432,159.19,159.05,15.8524]
[1723171117464,18.17,159.18,159.12,18.17]
[1723171117763,1.57078009,159.17,159.1,26.57]
[1723171118266,7.85338009,159.17,159.1,26.57]
[1723171118469,26.57,159.18,159.1,26.57]
[1723171118640,34.42312207,159.18,159.1,26.57]
[1723171119052,32.8523,159.18,159.1,26.57]
[1723171119551,26.57,159.18,159.1,26.57]
[1723171119860,22.2957,159.23,159.16,26.57]
[1723171120064,6.0286,159.23,159.16,26.57]
[1723171120361,12.3088,159.23,159.16,26.57]
[1723171121358,32.8506,159.22,159.14,26.57]
[1723171122063,7.85102754,159.22,159.16,26.57]
[1723171122251,6.0286,159.23,159.16,26.57]
[1723171122645,7.85122689,159.22,159.11,20.8294675]
[1723171122846,7.85122689,159.22,159.15,26.57]
[1723171123043,1.57032689,159.22,159.15,26.57]
[1723171123246,6.0286,159.23,159.15,26.57]
[1723171123444,22.651,159.27,159.19,26.57]
[1723171123667,49.221,159.27,159.19,26.57]
[1723171124364,6.2795,159.25,159.19,26.57]
[1723171125071,6.2798,159.24,159.19,26.57]
[1723171125270,6.2798,159.24,159.13,35.2385]
[1723171125271,7.85040582,159.23,159.17,26.57]
[1723171126260,6.2802,159.23,159.17,26.57]
[1723171126439,6.2798,159.24,159.17,26.57]
[1723171126645,1.57039594,159.23,159.17,26.57]
[1723171126957,6.2798,159.24,159.17,26.57]
[1723171128456,6.2798,159.24,159.17,26.07]
[1723171128655,32.8494,159.25,159.17,26.07]
[1723171129352,6.2794,159.25,159.17,26.07]
[1723171129670,32.8494,159.25,159.17,26.07]
[1723171130272,1.57024692,159.24,159.17,26.07]
[1723171130474,32.8494,159.25,159.17,26.07]
[1723171130871,1.57019159,159.24,159.17,26.07]
[1723171131158,28.14031531,159.23,159.15,26.57]
[1723171131673,6.2806,159.22,159.15,26.57]
[1723171131850,24.2214936,159.27,159.15,26.57]
[1723171132045,26.57,159.25,159.17,26.57]
[1723171132671,22.651,159.27,159.19,26.57]
[1723171132861,26.57,159.26,159.19,26.57]
[1723171133377,32.8494,159.26,159.19,26.57]
[1723171133873,6.2795,159.25,159.19,26.57]
[1723171134049,6.2805,159.23,159.17,26.57]
[1723171134249,28.14039841,159.24,159.17,26.57]
[1723171134250,32.8498,159.24,159.17,26.57]
[1723171134453,1.57032161,159.23,159.17,26.57]
[1723171134772,32.8498,159.24,159.17,26.57]
[1723171134773,26.57,159.24,159.17,26.57]
[1723171135467,1.57026998,159.23,159.17,26.57]
[1723171135674,26.07,159.24,159.13,41.76625916]
[1723171135844,26.57,159.26,159.18,26.57]
[1723171136247,1.5700883,159.25,159.18,26.57]
[1723171137051,7.8494883,159.25,159.18,26.57]
[1723171138270,1.5700883,159.25,159.18,26.57]
[1723171138451,6.2805,159.23,159.18,26.57]
[1723171138654,6.2805,159.23,159.16,26.57]
[1723171139162,6.2806,159.22,159.16,26.57]
[1723171139876,26.57,159.22,159.13,21.76625916]
[1723171140174,1.57044322,159.21,159.13,41.8085]
[1723171140375,26.57,159.21,159.13,41.8085]
[1723171140575,6.281,159.21,159.13,41.8085]
[1723171140762,32.851,159.21,159.13,41.8085]
[1723171141362,1.57057957,159.2,159.13,41.8085]
[1723171141572,26.57,159.21,159.13,41.8085]
[1723171142287,32.8505,159.23,159.15,26.57]
[1723171142852,6.2806,159.22,159.15,26.57]
[1723171143378,32.8502,159.23,159.15,26.57]
[1723171144764,26.57,159.25,159.17,26.57]
[1723171144971,26.57,159.25,159.18,1.2561452]
[1723171145278,49.221,159.27,159.19,26.57]
[1723171145785,6.2791,159.26,159.19,26.57]
[1723171146084,6.2795,159.25,159.19,26.57]
[1723171146259,6.2795,159.25,159.18,26.57]
[1723171146462,6.2798,159.24,159.18,26.57]
[1723171146662,6.2798,159.24,159.15,20.0]
[1723171146880,26.57,159.24,159.17,26.57]
[1723171147088,6.2806,159.22,159.16,26.57]
[1723171147585,6.2802,159.23,159.16,26.57]
[1723171148291,6.2806,159.22,159.16,26.57]
[1723171148464,28.14046074,159.21,159.13,48.33560949]
[1723171148790,28.14046074,159.21,159.14,26.57]
[1723171148791,1.57054095,159.2,159.14,26.57]
[1723171149160,32.851,159.21,159.14,26.57]
[1723171149859,1.57053985,159.2,159.14,26.57]
[1723171151887,32.851,159.21,159.14,26.57]
[1723171152079,6.281,159.21,159.15,26.57]
[1723171152281,32.8505,159.23,159.15,26.57]
[1723171152583,6.2805,159.23,159.17,26.57]
[1723171152786,6.2798,159.25,159.18,26.57]
[1723171153088,22.651,159.27,159.2,26.57]
[1723171153089,55.4996,159.27,159.2,26.57]
[1723171153257,49.221,159.27,159.2,26.57]
[1723171153596,6.2779,159.29,159.23,26.57]
[1723171153762,6.2779,159.29,159.18,20.0]
[1723171153763,6.2784,159.28,159.22,26.57]
[1723171153962,6.2784,159.28,159.21,26.57]
[1723171154163,7.84826813,159.28,159.21,26.57]
[1723171154765,6.2788,159.27,159.21,26.57]
[1723171155287,7.84909938,159.26,159.2,26.57]
[1723171155490,6.2786,159.27,159.2,26.57]
[1723171156259,1.56991642,159.26,159.2,26.57]
[1723171156465,7.84855946,159.27,159.2,26.57]
[1723171157491,28.72483065,159.31,159.24,26.57]
[1723171157661,22.1608,159.31,159.25,26.57]
[1723171158804,28.4381,159.31,159.25,26.57]
[1723171159391,6.2775,159.3,159.25,26.57]
[1723171160790,28.438,159.31,159.26,1.25567439]
[1723171160999,28.438,159.31,159.26,26.57]
[1723171162877,6.2767,159.32,159.27,26.57]
[1723171163195,6.2763,159.33,159.27,26.57]
[1723171163374,6.2766,159.32,159.26,26.57]
[1723171163690,6.277,159.31,159.26,26.57]
[1723171165690,6.277,159.31,159.25,26.57]
[1723171166371,1.56941853,159.3,159.23,26.57]
[1723171166576,32.8478,159.3,159.23,26.57]
[1723171166778,1.56964799,159.33,159.23,26.57]
[1723171166779,6.2779,159.29,159.23,26.57]
[1723171168292,6.2775,159.3,159.23,26.57]
[1723171168787,6.2783,159.28,159.21,26.57]
[1723171168987,1.56989541,159.27,159.21,26.57]
[1723171169298,6.2798,159.24,159.19,26.57]
[1723171169509,6.2798,159.24,159.17,26.57]
[1723171169673,7.8500297,159.24,159.17,26.57]
[1723171170583,1.5702297,159.24,159.17,26.57]
[1723171171485,1.5702297,159.24,159.16,23.14063151]
[1723171171486,1.5702297,159.24,159.19,26.57]
[1723171171689,6.2946,159.27,159.21,26.57]
[1723171172499,6.2946,159.27,159.22,15.7007]
[1723171173684,15.2465,159.28,159.22,42.2707]
[1723171173897,15.2465,159.28,159.24,15.6987]
[1723171174408,1.56971494,159.27,159.24,15.6987]
[1723171175291,15.2465,159.28,159.24,15.6987]
[1723171175500,15.2465,159.28,159.24,21.9783]
[1723171176574,6.2775,159.3,159.25,6.2792]